Cogmind - Beta 14 @@@ ROGUE MODE // 2024.12.07 @ 23:51:16 Player: Ayre223 Result: Destroyed by Z-Imprinter with Zionite Laser-M Performance ------------- Evolutions (1) 500 Regions Visited (6) 1200 Robots Destroyed (11) 55 Value Destroyed (281) 281 Prototype IDs (0) 0 Alien Tech Used (0) 0 Bonus (600) 600 TOTAL SCORE: 2636 Bonus ------- Met Imprinter 300 Was Imprinted 300 Cogmind --------- Core Integrity 0/400 Matter 300/300 Energy 100/100 System Corruption 0% Temperature Cool (27) Movement Core (700) Ox13 Location -7/Deep Caves Parts ------- > --- POWER (1) -------- (None) > --- PROPULSION (3) --- (None) > --- UTILITY (3) ------ High-capacity Storage Unit > --- WEAPON (2) ------- (None) > --- INVENTORY (20) --- Ion Engine Light Ion Engine Light Ion Engine Light Treads Light Treads Bomb Factory No. 2 Small Laser Light Cannon Grenade Launcher Grenade Launcher Rocket Launcher Heavy Flail Peak State ------------ > --- POWER ------------ Improved Ion Engine > --- PROPULSION ------- Light Treads Light Treads Light Treads > --- UTILITY ---------- Improved Heat Sink High-capacity Storage Unit Hardened Medium Armor Plating > --- WEAPON ----------- Heavy Assault Rifle Makeshift Shrapnel Gun > --- INVENTORY -------- Ion Engine Light Ion Engine Light Ion Engine Light Treads Light Treads Bomb Factory No. 2 Small Laser Light Cannon Grenade Launcher Grenade Launcher Rocket Launcher Heavy Flail [Rating: 20] Favorites ----------- Power Improved Ion Engine Engine Improved Ion Engine Power Core Light Nuclear Core Propulsion Light Treads Treads Light Treads Utility High-capacity Storage Unit Device Improved Heat Sink Storage High-capacity Storage Unit Protection Hardened Medium Armor Plating Weapon Heavy Assault Rifle Ballistic Gun Heavy Assault Rifle Ballistic Cannon Light Cannon Build | -11 -10 -10 -9 -9 -7 -7 ------- Run | Yrd Mat Min Mat Min Zio Dee Slots Evolved 2 | . . . 2 . . . Power . | . . . . . . . Propulsion 1 | . . . 1 . . . Utility 1 | . . . 1 . . . Weapon . | . . . . . . . Parts Attached 24 | 6 1 2 10 2 . 3 Power 4 | 1 . 1 2 . . . Engine 2 | 1 . . 1 . . . Core 2 | . . 1 1 . . . Reactor . | . . . . . . . Propulsion 7 | 2 . . 3 . . 2 Treads 7 | 2 . . 3 . . 2 Leg . | . . . . . . . Wheel . | . . . . . . . Hover . | . . . . . . . Flight . | . . . . . . . Utility 5 | 1 1 1 2 . . . Device 1 | . . 1 . . . . Storage 2 | 1 1 . . . . . Processor . | . . . . . . . Hackware . | . . . . . . . Protection 2 | . . . 2 . . . Artifact . | . . . . . . . Weapon 8 | 2 . . 3 2 . 1 Energy Gun . | . . . . . . . Energy Cannon . | . . . . . . . Ballistic Gun 7 | 2 . . 3 1 . 1 Ballistic Cannon 1 | . . . . 1 . . Launcher . | . . . . . . . Special Weapon . | . . . . . . . Impact Weapon . | . . . . . . . Slashing Weapon . | . . . . . . . Piercing Weapon . | . . . . . . . Special Melee Weapon . | . . . . . . . Unidentified Prototypes . | . . . . . . . Parts Lost 12 | . . . 1 . . 11 Power 2 | . . . 1 . . 1 Propulsion 5 | . . . . . . 5 Utility 2 | . . . . . . 2 Weapon 3 | . . . . . . 3 Highest Loss Streak 11 | . . . 1 . . 11 To Critical Strikes . | . . . . . . . Average Slot Usage (%) 98 | . 90 100 91 100 100 93 Engine 10 | . 14 11 3 11 11 10 Core 1 | . . 2 7 . . . Treads 31 | . 28 28 29 33 33 29 Device 10 | . . 2 11 11 11 10 Storage 12 | . 19 25 11 11 11 11 Protection 9 | . . . 6 11 11 10 Ballistic Gun 22 | . 28 28 21 19 22 20 Peak Build Rating 20 | 6 7 11 17 17 19 20 Average Rating 16 | 4 6 7 13 16 18 18 On Entrance 10 | . 6 7 11 16 17 19 Naked Turns . | . . . . . . . Heaviest Build 62 | 10 50 52 60 62 62 62 Greatest Support 60 | 40 40 40 60 60 60 60 Greatest Overweight (x) 3 | . 1 1 2 1 1 3 Average Overweight (x) . | . . 1 . 1 1 1 Largest Inventory Capacity 20 | 8 20 20 20 20 20 20 Average Capacity 19 | 7 12 20 20 20 20 20 Most Carried 16 | 3 3 5 12 13 16 16 Average Carried 12 | 1 2 2 6 12 15 15 Final Capacity 20 | 8 20 20 20 20 20 20 Final Carried 16 | 2 2 4 12 13 16 13 Class Distribution -------------------- 100% | Mutant Dominant Class ---------------- Mutant | -10/Materials Mutant | -10/Mines Mutant | -9/Materials Mutant | -9/Mines Mutant | -7/Zion Mutant | -7/Deep Caves Resources | -11 -10 -10 -9 -9 -7 -7 ----------- Run | Yrd Mat Min Mat Min Zio Dee Matter Collected 570 | 224 . 96 147 103 . . Remotely . | . . . . . . . Salvage Created 391 | . . 91 252 48 . . Parts 22 | . . 3 16 3 . . Haulers Intercepted 1 | . . . 1 . . . Recyclers Shooed . | . . . . . . . Parts Field Recycled . | . . . . . . . Retrieved Matter . | . . . . . . . Parts Self-Destructed . | . . . . . . . Prevented . | . . . . . . . Kills | -11 -10 -10 -9 -9 -7 -7 ------- Run | Yrd Mat Min Mat Min Zio Dee Combat Hostiles Destroyed 10 | . . 2 4 4 . . Guns 7 | . . 2 4 1 . . Cannons 3 | . . . . 3 . . Classes Destroyed 4 | . . 1 2 1 . . Hauler 1 | . . . 1 . . . Swarmer 4 | . . . . 4 . . Grunt 4 | . . 2 2 . . . Sentry 2 | . . . 2 . . . Best Kill Streak 3 | . . 2 2 3 . . Combat Bots Only 3 | . . 2 1 3 . . Max Kills in Single Turn 1 | . . 1 1 1 . . Gunslinging . | . . . . . . . Exploded . | . . . . . . . Melee . | . . . . . . . Uniques/NPCs Destroyed . | . . . . . . . Combat | -11 -10 -10 -9 -9 -7 -7 -------- Run | Yrd Mat Min Mat Min Zio Dee Hostile Shots Fired 124 | . . 16 25 22 . 61 Missed 34 | . . 6 6 7 . 15 Damage Taken 2032 | . . 158 297 124 . 1453 Core 440 | . . 17 26 . . 397 Absorbed by Shields . | . . . . . . . Core Remaining (%) 96 | 100 . 93 . . . . Volleys Fired 46 | . 2 13 17 13 . 1 Largest 2 | . 2 2 2 2 . 1 Hottest 58 | . 40 40 43 58 . 23 Shots Fired 91 | . 4 26 34 26 . 1 Gun 86 | . 4 26 34 21 . 1 Cannon 5 | . . . . 5 . . Launcher . | . . . . . . . Special . | . . . . . . . Kinetic 91 | . 4 26 34 26 . 1 Thermal . | . . . . . . . Explosive . | . . . . . . . Electromagnetic . | . . . . . . . Robot Hit Streak 20 | . 1 8 20 2 . 2 Robot Miss Streak 3 | . 2 1 2 3 . . Penetration Max . | . . . . . . . Secondary Targets 1 | . . 1 . . . . Max Gunslinging Chain 1 | . . 1 . . . . Shots Hit Robots 61 | . 1 21 26 12 . 1 Core Hits 23 | . . 9 10 4 . . Critical Kills 1 | . . . 1 . . . Critical Parts Destroyed . | . . . . . . . Critical Strikes 2 | . . . 1 1 . . Destroy 1 | . . . 1 . . . Blast 1 | . . . . 1 . . Melee Attacks . | . . . . . . . Impact . | . . . . . . . Slashing . | . . . . . . . Piercing . | . . . . . . . Sneak Attacks . | . . . . . . . Combat Hostiles . | . . . . . . . Follow-up Attacks . | . . . . . . . Damage Inflicted 638 | . 6 164 247 203 . 18 Guns 573 | . 6 164 247 138 . 18 Cannons 65 | . . . . 65 . . Explosions . | . . . . . . . Melee . | . . . . . . . Ramming . | . . . . . . . Kinetic 638 | . 6 164 247 203 . 18 Thermal . | . . . . . . . Explosive . | . . . . . . . Electromagnetic . | . . . . . . . Impact . | . . . . . . . Slashing . | . . . . . . . Piercing . | . . . . . . . Highest Corruption . | . . . . . . . Average Corruption . | . . . . . . . Corruption Purged . | . . . . . . . Corruption Blocked . | . . . . . . . Overload Shots . | . . . . . . . Overflow Damage . | . . . . . . . Projectiles . | . . . . . . . Explosions . | . . . . . . . Melee . | . . . . . . . Knockbacks 2 | . . . . 2 . . Impact . | . . . . . . . Kinetic 1 | . . . . 1 . . Secondary 1 | . . . . 1 . . Self-Inflicted Damage . | . . . . . . . Shots . | . . . . . . . Rammed . | . . . . . . . Targets Rammed . | . . . . . . . Kicked . | . . . . . . . Crushed . | . . . . . . . Highest Temperature 18 | . . 18 18 . . 8 Average Temperature 10 | . . 9 13 . . 8 Received Heat Transfer 627 | . . 105 108 . . 414 Siege Activations . | . . . . . . . Robots Corrupted . | . . . . . . . Combat Hostiles . | . . . . . . . Parts Fried . | . . . . . . . Impact Corruptions . | . . . . . . . Robots Melted . | . . . . . . . Combat Hostiles . | . . . . . . . Parts Melted . | . . . . . . . Heat Transferred . | . . . . . . . Parts Sabotaged . | . . . . . . . Parts Stolen . | . . . . . . . Parts Stripped . | . . . . . . . Power Chain Reactions . | . . . . . . . Alert | -11 -10 -10 -9 -9 -7 -7 ------- Run | Yrd Mat Min Mat Min Zio Dee Peak Influence 149 | . . 80 141 149 . . Initial 31 | . . . 31 29 . . Average 58 | . . 44 66 73 . . Maximum Alert Level . | . . . . . . . Low Security (%) 100 | 100 100 100 100 100 . . Level 1 . | . . . . . . . Level 2 . | . . . . . . . Level 3 . | . . . . . . . Level 4 . | . . . . . . . Level 5 . | . . . . . . . High Security . | . . . . . . . Max Security . | . . . . . . . Squads Dispatched 2 | . 1 . 1 . . . Investigation . | . . . . . . . Extermination . | . . . . . . . Reinforcement 2 | . 1 . 1 . . . Assault . | . . . . . . . Garrison . | . . . . . . . Intercept . | . . . . . . . Searches Triggered . | . . . . . . . Construction Impeded . | . . . . . . . Haulers Reinforced . | . . . . . . . Active Scanning Responses . | . . . . . . . Cargo Convoy Interrupts . | . . . . . . . Stealth | -11 -10 -10 -9 -9 -7 -7 --------- Run | Yrd Mat Min Mat Min Zio Dee Distress Signals 2 | . . . 2 . . . Communications Jammed . | . . . . . . . Distress Signals . | . . . . . . . Times Spotted 22 | . 1 3 10 5 . 3 Peak Tracking Total 4 | . 1 2 3 4 . 3 Tactical Retreats 4 | . . 1 2 1 . . Traps | -11 -10 -10 -9 -9 -7 -7 ------- Run | Yrd Mat Min Mat Min Zio Dee Traps Triggered 4 | . . . 4 . . . Indirectly . | . . . . . . . Trap Hack Attempts . | . . . . . . . Triggered . | . . . . . . . Disarmed . | . . . . . . . Reprogrammed . | . . . . . . . Reused . | . . . . . . . Traps Extracted . | . . . . . . . Installed . | . . . . . . . Triggered . | . . . . . . . Machines | -11 -10 -10 -9 -9 -7 -7 ---------- Run | Yrd Mat Min Mat Min Zio Dee Machines Disabled . | . . . . . . . Max in Single Turn . | . . . . . . . Machines Repaired . | . . . . . . . Machines Dismantled . | . . . . . . . Machines Sabotaged . | . . . . . . . Overloaded Fab Kills . | . . . . . . . Hacking | -11 -10 -10 -9 -9 -7 -7 --------- Run | Yrd Mat Min Mat Min Zio Dee Machines Accessed 1 | . . . 1 . . . Terminals 1 | . . . 1 . . . Fabricators . | . . . . . . . Repair Stations . | . . . . . . . Recycling Units . | . . . . . . . Scanalyzers . | . . . . . . . Garrison Access . | . . . . . . . Total Hacks 3 | . . . 3 . . . Successful 2 | . . . 2 . . . Failed 1 | . . . 1 . . . Catastrophic . | . . . . . . . Database Lockouts . | . . . . . . . Manual 8 | . . . . . 8 . Terminals 3 | . . . 3 . . . Fabricators . | . . . . . . . Repair Stations . | . . . . . . . Recycling Units . | . . . . . . . Scanalyzers . | . . . . . . . Garrison Access . | . . . . . . . Terminal Hacks 2 | . . . 2 . . . Locate Traps 1 | . . . 1 . . . Zone Layout 1 | . . . 1 . . . Fabricator Hacks . | . . . . . . . Repair Station Hacks . | . . . . . . . Recycling Unit Hacks . | . . . . . . . Scanalyzer . | . . . . . . . Garrison Access Hacks . | . . . . . . . Unauthorized Hacks . | . . . . . . . Terminals . | . . . . . . . Fabricators . | . . . . . . . Repair Stations . | . . . . . . . Recycling Units . | . . . . . . . Scanalyzers . | . . . . . . . Garrison Access . | . . . . . . . Data Cores Recovered . | . . . . . . . Used . | . . . . . . . Hacking Detections 1 | . . . 1 . . . Full Trace Events . | . . . . . . . Feedback Events . | . . . . . . . Feedback Blocked . | . . . . . . . Robot Schematics Acquired 3 | . . . . . 3 . Robots Built . | . . . . . . . Authchips . | . . . . . . . Time . | . . . . . . . Total Robot Build Rating . | . . . . . . . Part Schematics Acquired 14 | . . . . . 14 . Parts Built . | . . . . . . . Authchips . | . . . . . . . Time . | . . . . . . . Total Part Build Rating . | . . . . . . . Parts Repaired . | . . . . . . . Time . | . . . . . . . Parts Recycled . | . . . . . . . Recycled Matter . | . . . . . . . Retrieved Matter . | . . . . . . . Retrieved Components . | . . . . . . . Parts Scanalyzed . | . . . . . . . Part Schematics Acquired . | . . . . . . . Parts Damaged . | . . . . . . . Bothacking | -11 -10 -10 -9 -9 -7 -7 ------------ Run | Yrd Mat Min Mat Min Zio Dee Used RIF Installer . | . . . . . . . Robots Hacked . | . . . . . . . Non-combat . | . . . . . . . Combat . | . . . . . . . Robot Hacks Applied . | . . . . . . . Relay Couplers Released . | . . . . . . . Fabnet Peak Effective % . | . . . . . . . Robots Rewired . | . . . . . . . Allies Hacked . | . . . . . . . Hacks Repelled . | . . . . . . . Allies | -11 -10 -10 -9 -9 -7 -7 -------- Run | Yrd Mat Min Mat Min Zio Dee Total Allies 4 | . . . . . 4 . Largest Group 4 | . . . . . 4 4 Highest-Rated Group 152 | . . . . . 152 152 Highest-Rated Ally 40 | . . . . . 40 40 Total Orders . | . . . . . . . Ally Attacks . | . . . . . . . Total Damage . | . . . . . . . Kills . | . . . . . . . Allies Corrupted . | . . . . . . . Allies Melted . | . . . . . . . Intel | -11 -10 -10 -9 -9 -7 -7 ------- Run | Yrd Mat Min Mat Min Zio Dee Robot Analysis Total . | . . . . . . . Derelict Logs Recovered 3 | . . 1 . . 2 . Drone Launches . | . . . . . . . Drone Recoveries . | . . . . . . . Exploration | -11 -10 -10 -9 -9 -7 -7 ------------- Run | Yrd Mat Min Mat Min Zio Dee Turns Passed 4589 | 87 77 307 542 626 2709 241 Spaces Moved 1891 | 49 38 103 236 243 1127 95 Core 4 | 4 . . . . . . Treads 1887 | 45 38 103 236 243 1127 95 Legs . | . . . . . . . Wheels . | . . . . . . . Hover . | . . . . . . . Flight . | . . . . . . . Fastest Speed 50 | 50 160 240 160 240 240 160 Average Speed 229 | 151 189 240 182 240 240 240 Slowest Speed 400 | 160 240 240 320 240 240 400 Overloaded Moves . | . . . . . . . Propulsion Burnouts . | . . . . . . . Robots Hopped . | . . . . . . . Cave-ins Triggered . | . . . . . . . Exploration Rate (%) 34 | 4 10 33 30 58 83 23 Regions Visited 6 Branch Regions 4 Pre-discovered Areas 2 | . . . . . 2 . Known Exits Taken . | . . . . . . . Unknown Exits Taken 6 | 1 1 1 1 1 1 . Scrap Searched 4 | . . . . 1 3 . Spaces Dug . | . . . . . . . Terrain Destroyed . | . . . . . . . Melee . | . . . . . . . Projectile . | . . . . . . . AOE . | . . . . . . . Terrain Rammed . | . . . . . . . Walls Destroyed . | . . . . . . . Machines Disabled . | . . . . . . . Actions | -11 -10 -10 -9 -9 -7 -7 --------- Run | Yrd Mat Min Mat Min Zio Dee Total 2062 | 62 41 142 318 260 1132 107 Wait 70 | . . 21 37 . 4 8 Move 1885 | 48 37 102 235 242 1126 95 Hop . | . . . . . . . Pick Up 34 | 8 1 3 18 2 2 . Fast Attach . | . . . . . . . Attach 19 | 6 1 . 9 . . 3 Detach . | . . . . . . . Swap 5 | . . 2 1 2 . . Drop 3 | . . 1 1 1 . . Fire 46 | . 2 13 17 13 . 1 Melee . | . . . . . . . Ram . | . . . . . . . Kick . | . . . . . . . Crush . | . . . . . . . Escape Stasis . | . . . . . . . Rewire . | . . . . . . . Trap . | . . . . . . . Miscellaneous . | . . . . . . . Route ------- -11/Scrapyard -10/Materials -10/Mines -9/Materials (discovered 2 exits: [*Min] / [*Sto]) -9/Mines (discovered 3 exits: [*Mat x2] / *Zio) -7/Zion -7/Deep Caves History --------- Turn | Location | Event 23 | -11/Scrapyard | Discovered new exit (range 16) 88 | -11/Scrapyard | Entered Materials 121 | -10/Materials | Discovered new exit (range 16) 165 | -10/Materials | Entered Mines 174 | -10/Mines | Met a Derelict bent on vengeance 274 | -10/Mines | Learned Materials non-interactive machine intel 306 | -10/Mines | Build established: Mutant 452 | -10/Mines | Discovered new exit (range 9) 472 | -10/Mines | Entered Materials 472 | -9/Materials | Evolved 2 slots: Propulsion x1, Utility x1 473 | -9/Materials | Loaded intel: 32 non-interactive machine locations 736 | -9/Materials | Discovered new exit (range 15) 964 | -9/Materials | Discovered new exit (range 13) 1014 | -9/Materials | Entered Mines 1062 | -9/Mines | Received a Rocket Launcher from a helpful Derelict 1450 | -9/Mines | Discovered new exit (range 4) 1546 | -9/Mines | Discovered new exit (range 13) 1636 | -9/Mines | A Derelict revealed a hidden shortcut to a safe place 1640 | -9/Mines | Entered Zion 2029 | -7/Zion | Found Prototype Device 2172 | -7/Zion | Learned location of Armory (-4) 2787 | -7/Zion | Met Imprinter 2826 | -7/Zion | Imprinted 2828 | -7/Zion | Declared Zion's savior 3063 | -7/Zion | Acquired unknown access codes intercepted by a Zionite 3541 | -7/Zion | Received a visual enhancement algorithm 3926 | -7/Zion | Given the Hacking Drone Bay 4303 | -7/Zion | Opened final containment barrier to the Deep Caves 4342 | -7/Zion | Discovered new exit (range 3) 4342 | -7/Zion | Saw the warning signs outside the Deep Caves entrance 4349 | -7/Zion | Entered Deep Caves 4349 | -7/Deep Caves | Accompanied by 4 allies 4544 | -7/Deep Caves | Attacked by Z-Imprinter 4566 | -7/Deep Caves | Z-Facility disabled 4587 | -7/Deep Caves | Core integrity fell below 50% 4590 | -7/Deep Caves | Core integrity fell below 20% 4590 | -7/Deep Caves | Destroyed by Z-Imprinter with Zionite Laser-M Last Messages --------------- yeah." 04351_ QB-2SB(M) slips into the shadows. 04352_ Z5-EFE(M) slips into the shadows. 04352_ NR-AYD(M) slips into the shadows. 04353_ I5-G0O(M) slips into the shadows. 04533_ NEW_ZION: Z-Facility proximity alert. Z-Imprinter: GET AWAY FROM HERE! I've worked too hard for our future just to have you ruin everything! 04549_ Lgt. Treads destroyed. 04560_ Hvy. Assault Rifle destroyed. 04566_ Z-Facility disabled. 04574_ Hvy. Assault Rifle destroyed. 04577_ Hrd. Medium Armor Plating destroyed. 04578_ Lgt. Treads destroyed. 04581_ Imp. Ion Engine destroyed. 04581_ Lgt. Treads destroyed. 04583_ Imp. Heat Sink destroyed. 04584_ Lgt. Treads destroyed. 04584_ Mak. Shrapnel Gun destroyed. Map ----- +----------------------------------------------------+ | | | | | | | | | | | | | | | | | | | | | | | | | ?????????????????????????????????????????????????? | | ???????????????????#########?????????????????????? | | ????????????????? ##???????????????????? | | ????????????????? #????###????????????? | | ???????????????? ###### ##?????######? | | ???????????????? ## # #???### ## | | ???????????????? ##### # | | ????????????????? # | | ???????????????? # | | ????????????????? #? | | ????????????????? #? | | ????????????????? """""" ## | | ?????????????????"""""""" # | | ?????????????????""""" @ | | ????????????????"""""""" z | | ????????????????"""""" z | | ????????????????"""""""" I | | ?????????????????"""""" # | | ?????????????????"""""""" ## | | ?????????????????"""""""" #? | | ??????????????????"" " " #? | | ???????????????????""o o # | | ???????????????????? # | | ???????????????????"" # | | ????????????????????" ## | | ????????????????????""" #? | | ?????????????????????""""o ? | | ?????????????????????? ? | | ???????????????????????? #? | | ????????????????????????" ? #?? | | ?????????????????????????" ????????????????????? | | ?????????????????????????????????????????????????? | | ?????????????????????????????????????????????????? | | ?????????????????????????????????????????????????? | | ?????????????????????????????????????????????????? | | ?????????????????????????????????????????????????? | | ?????????????????????????????????????????????????? | | ?????????????????????????????????????????????????? | +----------------------------------------------------+ Best States ------------- Heat Dissipation 42 Energy Generation 14 Energy Capacity 265 Matter Stores 300 Matter Capacity 300 Sight Range 16 Terrain Scan Density 10 Armor Coverage 225 Evasion (%) 40 Recoil Reduction 3 Item Schematics ----------------- Hvy. Flak Cannon | -7/Zion | Archive Adv. Terrain Scan Processor | -7/Zion | Archive Focal Shield | -7/Zion | Archive Imp. Thermal Shield | -7/Zion | Archive Adv. Drone Bay | -7/Zion | Archive Spear | -7/Zion | Archive Magnetic Acceleration Cannon | -7/Zion | Archive Hrd. Heavy Armor Plating | -7/Zion | Archive Proton Cannon | -7/Zion | Archive Gauss Rifle | -7/Zion | Archive Remote Datajack | -7/Zion | Archive Thermic Laser | -7/Zion | Archive Powered Hammer | -7/Zion | Archive Force Field | -7/Zion | Archive Robot Schematics ------------------ B-48 Gladiator | -7/Zion | Archive L-41 Fighter | -7/Zion | Archive A-02 Transporter | -7/Zion | Archive Fabricated ------------ Nothing Alien Tech Used ----------------- None Achievements -------------- Adventurer Signs Are For Wimps Challenges ------------ None Game ------ Seed UtilityBeamSword Manual? 0 Play Time 00:19:38 Cumulative 11.0 hours Start 2024.12.07 @ 23:32:48 End 2024.12.07 @ 23:51:16 Sessions 1 Manual Loads 0 Difficulty Rogue Special Mode None Game No. 18 Rogue 18 Adventurer 0 Explorer 0 Win Type - Total 0 Types 0/0/0/0/0/0/0/0/0 Lore% 10 Gallery% 20 Achievement% 17 Wizard Run 0 Options --------- Layout 1 ASCII 0 Keyboard 0 Movement Mouse Keybinds 0 Fullscreen 1 Font 24/Smallcaps Map View 50x35 Zoom Use 0% Tactical HUD 1 Map Filters NONE Filters NONE Steam 1 RUN: ce97f77a-5398-4741-8381-462614f0db1f